[Event "Cracovia Chess Festival A 2021"]
[Site "Cracow"]
[Date "2022.01.03"]
[Round "8.29"]
[White "Lisowski, Krzysztof"]
[Black "Czernek, Tymon"]
[Result "0-1"]
[ECO "B20"]
[WhiteElo "2142"]
[BlackElo "2224"]
[Annotator "ChessBase"]
[PlyCount "104"]
[EventDate "2021.12.27"]
[EventCountry "POL"]
[SourceTitle "playchess.com"]
[Source "ChessBase"]
[SourceQuality "1"]
[TimeControl "40/5400+30:1800+30"]

1. e4 {[%emt 0:00:03]} c5 {[%emt 0:00:03]} 2. d3 {[%emt 0:00:28]} Nc6 {[%emt 0:00:06]} 3. Be2 {[%emt 0:00:49]} g6 {[%emt 0:00:05]} 4. f4 {[%emt 0:00:12]} Bg7 {[%emt 0:00:03]} 5. Nf3 {[%emt 0:00:41]} e6 {[%emt 0:00:02]} 6. c3 {[%emt 0:04:10]} Nge7 {[%emt 0:00:31]} 7. O-O {[%emt 0:03:32]} O-O {[%emt 0:00:05]} 8. Be3 {[%emt 0:06:08]} b6 {[%emt 0:00:02]} 9. Na3 {[%emt 0:01:02]} f5 {[%emt 0:06:26]} 10. e5 {[%emt 0:11:33]} Nd5 {[%emt 0:00:35]} 11. Qd2 {[%emt 0:12:03]} d6 {[%emt 0:08:41]} 12. d4 {[%emt 0:05:42]} cxd4 {[%emt 0:02:41]} 13. cxd4 {[%emt 0:00:18]} dxe5 {[%emt 0:00:30]} 14. dxe5 {[%emt 0:00:18]} Re8 {[%emt 0:08:34]} 15. Bf2 {[%emt 0:16:39]} Bh6 {[%emt 0:05:36]} 16. g3 {[%emt 0:06:35]} Bb7 {[%emt 0:02:15]} 17. Rfd1 {[%emt 0:01:23]} Qe7 {[%emt 0:07:21]} 18. Nb5 {[%emt 0:11:26]} Red8 {[%emt 0:00:52]} 19. Nbd4 {[%emt 0:07:04]} Nxd4 {[%emt 0:02:43]} 20. Bxd4 {[%emt 0:00:12]} Rac8 {[%emt 0:02:02]} 21. a3 {[%emt 0:01:09]} Rc7 {[%emt 0:04:32]} 22. h4 {[%emt 0:01:42]} Rcd7 {[%emt 0:10:41]} 23. Ng5 {[%emt 0:00:07]} Bxg5 {[%emt 0:01:52]} 24. hxg5 {[%emt 0:00:06]} Nc7 {[%emt 0:00:22]} 25. Qe3 {[%emt 0:02:46]} h6 {[%emt 0:01:21]} 26. gxh6 {[%emt 0:05:38]} Qh7 {[%emt 0:00:01]} 27. Bc3 {[%emt 0:01:12]} Qxh6 {[%emt 0:04:25]} 28. Rxd7 {[%emt 0:00:34]} Qh1+ {[%emt 0:00:20]} 29. Kf2 {[%emt 0:00:04]} Qh2+ {[%emt 0:00:02]} 30. Ke1 {[%emt 0:00:09]} Rxd7 {[%emt 0:00:04]} 31. Qf2 {[%emt 0:00:38]} Qh1+ {[%emt 0:02:57]} 32. Qf1 {[%emt 0:00:07]} Qe4 {[%emt 0:00:06]} 33. Rd1 {[%emt 0:00:46]} Rxd1+ {[%emt 0:01:33]} 34. Kxd1 {[%emt 0:00:04]} Nd5 {[%emt 0:00:06]} 35. Qf2 {[%emt 0:01:29]} Nxc3+ {[%emt 0:00:36]} 36. bxc3 {[%emt 0:00:05]} Qb1+ {[%emt 0:00:04]} 37. Kd2 {[%emt 0:00:06]} Qb2+ {[%emt 0:00:03]} 38. Kd1 {[%emt 0:01:39]} Qxc3 {[%emt 0:00:17]} 39. Qe1 {[%emt 0:00:31]} Qxa3 {[%emt 0:01:15]} 40. Qd2 {[%emt 0:00:00]} Bd5 {[%emt 0:00:00]} 41. Bd3 {[%emt 0:04:32]} Qa1+ {[%emt 0:02:06]} 42. Ke2 {[%emt 0:03:46]} a5 {[%emt 0:00:27]} 43. Qc2 {[%emt 0:02:58]} Qa2 {[%emt 0:00:02]} 44. Qxa2 {[%emt 0:00:20]} Bxa2 {[%emt 0:00:02]} 45. Bb5 {[%emt 0:00:14]} Kf7 {[%emt 0:01:13]} 46. Kd2 {[%emt 0:01:26]} g5 {[%emt 0:00:13]} 47. Kc3 {[%emt 0:00:40]} gxf4 {[%emt 0:01:07]} 48. gxf4 {[%emt 0:00:07]} Bd5 {[%emt 0:00:05]} 49. Kd4 {[%emt 0:05:51]} Ke7 {[%emt 0:00:15]} 50. Kc3 {[%emt 0:02:02]} Kd8 {[%emt 0:00:03]} 51. Kd4 {[%emt 0:01:16]} Kc7 {[%emt 0:00:04]} 52. Kc3 {[%emt 0:00:34]} Bc6 {[%emt 0:00:10]} 0-1

[Event "Cracovia Chess Festival A 2021"]
[Site "Cracow"]
[Date "2022.01.03"]
[Round "8.30"]
[White "Kolasinski, Krzysztof"]
[Black "Maj, Pawel"]
[Result "0-1"]
[ECO "D85"]
[WhiteElo "2114"]
[BlackElo "2145"]
[Annotator "ChessBase"]
[PlyCount "140"]
[EventDate "2021.12.27"]
[EventCountry "POL"]
[SourceTitle "playchess.com"]
[Source "ChessBase"]
[SourceQuality "1"]
[TimeControl "40/5400+30:1800+30"]

1. d4 {[%emt 0:00:14]} Nf6 {[%emt 0:00:05]} 2. c4 {[%emt 0:00:11]} g6 {[%emt 0:00:06]} 3. Nc3 {[%emt 0:00:12]} d5 {[%emt 0:00:06]} 4. cxd5 {[%emt 0:00:42]} Nxd5 {[%emt 0:00:05]} 5. Na4 {[%emt 0:00:13]} Bg7 {[%emt 0:00:49]} 6. e4 {[%emt 0:00:19]} Nb6 {[%emt 0:01:50]} 7. Be3 {[%emt 0:00:15]} O-O {[%emt 0:04:10]} 8. Nf3 {[%emt 0:00:07]} N8d7 {[%emt 0:20:47]} 9. Be2 {[%emt 0:00:57]} Nxa4 {[%emt 0:01:53]} 10. Qxa4 {[%emt 0:00:02]} c5 {[%emt 0:00:19]} 11. O-O {[%emt 0:02:22]} cxd4 {[%emt 0:01:13]} 12. Bxd4 {[%emt 0:00:15]} Nb6 {[%emt 0:02:00]} 13. Qb4 {[%emt 0:10:01]} Bxd4 {[%emt 0:01:33]} 14. Nxd4 {[%emt 0:01:38]} a5 {[%emt 0:02:28]} 15. Qc3 {[%emt 0:04:11]} Na4 {[%emt 0:04:43]} 16. Qe3 {[%emt 0:00:28]} Qb6 {[%emt 0:13:37]} 17. b3 {[%emt 0:02:07]} e5 {[%emt 0:00:48]} 18. bxa4 {[%emt 0:10:20]} exd4 {[%emt 0:04:15]} 19. Qd2 {[%emt 0:01:00]} Rd8 {[%emt 0:02:16]} 20. Rab1 {[%emt 0:00:34]} Qc6 {[%emt 0:01:23]} 21. Rfc1 {[%emt 0:07:43]} Qxe4 {[%emt 0:01:45]} 22. Bf3 {[%emt 0:06:05]} Qe5 {[%emt 0:00:37]} 23. Rb5 {[%emt 0:00:16]} Qf6 {[%emt 0:04:52]} 24. Rxa5 {[%emt 0:13:56]} Rxa5 {[%emt 0:00:32]} 25. Qxa5 {[%emt 0:00:03]} d3 {[%emt 0:01:41]} 26. Qd2 {[%emt 0:01:00]} b6 {[%emt 0:05:46]} 27. h3 {[%emt 0:08:49]} Qd4 {[%emt 0:09:06]} 28. Rb1 {[%emt 0:02:27]} Be6 {[%emt 0:01:03]} 29. Bd1 {[%emt 0:01:26]} Rc8 {[%emt 0:01:29]} 30. Rb2 {[%emt 0:08:13]} h5 {[%emt 0:01:38]} 31. Kf1 {[%emt 0:02:46]} Bc4 {[%emt 0:01:12]} 32. Kg1 {[%emt 0:02:34]} Re8 {[%emt 0:01:10]} 33. Bf3 {[%emt 0:03:51]} Re6 {[%emt 0:03:07]} 34. Rb1 {[%emt 0:02:19]} Bd5 {[%emt 0:01:46]} 35. Bxd5 {[%emt 0:02:35]} Qxd5 {[%emt 0:02:17]} 36. Rb3 {[%emt 0:01:24]} Rd6 {[%emt 0:00:13]} 37. Rc3 {[%emt 0:01:49]} Qe4 {[%emt 0:00:47]} 38. Rb3 {[%emt 0:01:57]} Kh7 {[%emt 0:00:55]} 39. Rb4 {[%emt 0:00:26]} Qc6 {[%emt 0:00:43]} 40. Qf4 {[%emt 0:00:00]} Qd5 {[%emt 0:00:00]} 41. Rb5 {[%emt 0:11:21]} Qe6 {[%emt 0:03:07]} 42. Re5 {[%emt 0:00:42]} Qd7 {[%emt 0:01:34]} 43. Re1 {[%emt 0:02:10]} Rd4 {[%emt 0:01:07]} 44. Qf6 {[%emt 0:01:26]} d2 {[%emt 0:02:48]} 45. Rd1 {[%emt 0:00:15]} Rd6 {[%emt 0:01:51]} 46. Qf4 {[%emt 0:00:35]} Kg8 {[%emt 0:00:42]} 47. Kf1 {[%emt 0:02:58]} Rd4 {[%emt 0:01:08]} 48. Qb8+ {[%emt 0:00:44]} Kg7 {[%emt 0:02:57]} 49. Qxb6 {[%emt 0:00:23]} Qxa4 {[%emt 0:00:09]} 50. Qb3 {[%emt 0:00:24]} Qa6+ {[%emt 0:00:41]} 51. Kg1 {[%emt 0:00:07]} Qe2 {[%emt 0:00:50]} 52. Qf3 {[%emt 0:00:19]} Qe1+ {[%emt 0:01:54]} 53. Kh2 {[%emt 0:00:07]} Kg8 {[%emt 0:08:29]} 54. Qa8+ {[%emt 0:00:41]} Kh7 {[%emt 0:00:15]} 55. Qf3 {[%emt 0:00:12]} Rd7 {[%emt 0:00:33]} 56. a4 {[%emt 0:00:27]} Re7 {[%emt 0:01:42]} 57. a5 {[%emt 0:01:21]} Qe5+ {[%emt 0:07:43]} 58. Qg3 {[%emt 0:00:32]} Qxa5 {[%emt 0:02:06]} 59. Qd3 {[%emt 0:00:33]} Qc7+ {[%emt 0:00:04]} 60. g3 {[%emt 0:03:20]} Rd7 {[%emt 0:00:05]} 61. Qe3 {[%emt 0:02:13]} Qa5 {[%emt 0:00:48]} 62. Qe8 {[%emt 0:00:30]} Qd5 {[%emt 0:00:33]} 63. Qe3 {[%emt 0:00:57]} Rd6 {[%emt 0:01:00]} 64. h4 {[%emt 0:01:47]} Qa2 {[%emt 0:01:46]} 65. Qf4 {[%emt 0:00:36]} Rd7 {[%emt 0:00:10]} 66. Kg2 {[%emt 0:00:34]} Qc2 {[%emt 0:00:25]} 67. Qf3 {[%emt 0:00:08]} Re7 {[%emt 0:00:45]} 68. Kf1 {[%emt 0:02:20]} f5 {[%emt 0:00:52]} 69. Kg2 Re1 {[%emt 0:00:34]} 70. Qa8 {[%emt 0:01:21]} Qxd1 {[%emt 0:00:22]} 0-1

[Event "Cracovia Chess Festival A 2021"]
[Site "Cracow"]
[Date "2022.01.03"]
[Round "8.31"]
[White "Kotyk, Michael"]
[Black "Malek, Daniel"]
[Result "0-1"]
[ECO "E46"]
[WhiteElo "2140"]
[BlackElo "2376"]
[Annotator "ChessBase"]
[PlyCount "52"]
[EventDate "2021.12.27"]
[EventCountry "POL"]
[SourceTitle "playchess.com"]
[Source "ChessBase"]
[SourceQuality "1"]
[TimeControl "40/5400+30:1800+30"]

1. d4 {[%emt 0:00:03]} Nf6 {[%emt 0:00:07]} 2. c4 {[%emt 0:00:05]} e6 {[%emt 0:00:04]} 3. Nc3 {[%emt 0:00:04]} Bb4 {[%emt 0:00:04]} 4. e3 {[%emt 0:00:04]} O-O {[%emt 0:00:07]} 5. Bd2 {[%emt 0:00:03]} d5 {[%emt 0:00:12]} 6. Nf3 {[%emt 0:00:04]} b6 {[%emt 0:00:31]} 7. Rc1 {[%emt 0:00:06]} Ba6 {[%emt 0:07:29]} 8. Qa4 {[%emt 0:06:11]} Be7 {[%emt 0:06:47]} 9. b4 {[%emt 0:19:25]} c5 {[%emt 0:17:06]} 10. Nb5 {[%emt 0:07:27]} Ne4 {[%emt 0:07:48]} 11. bxc5 {[%emt 0:08:52]} bxc5 {[%emt 0:15:50]} 12. Ba5 {[%emt 0:01:00]} Qe8 {[%emt 0:00:13]} 13. Qc2 {[%emt 0:02:58]} Bxb5 {[%emt 0:00:26]} 14. cxb5 {[%emt 0:00:05]} Nd7 {[%emt 0:00:34]} 15. Bd3 {[%emt 0:02:02]} f5 {[%emt 0:00:11]} 16. dxc5 {[%emt 0:01:47]} Ndxc5 {[%emt 0:00:26]} 17. Nd4 {[%emt 0:00:46]} Bd6 {[%emt 0:04:33]} 18. f3 {[%emt 0:10:38]} Nxd3+ {[%emt 0:03:09]} 19. Qxd3 {[%emt 0:00:08]} Nc5 {[%emt 0:00:06]} 20. Qd2 {[%emt 0:02:15]} f4 {[%emt 0:03:59]} 21. Nc6 {[%emt 0:03:55]} a6 {[%emt 0:03:47]} 22. Qd4 {[%emt 0:04:57]} axb5 {[%emt 0:06:20]} 23. Rxc5 {[%emt 0:00:22]} Rc8 {[%emt 0:00:20]} 24. Rc1 {[%emt 0:14:37]} Rxc6 {[%emt 0:00:11]} 25. Bc3 {[%emt 0:01:01]} Qe7 {[%emt 0:04:30]} 26. O-O {[%emt 0:00:58]} Bc5 {[%emt 0:01:06]} 0-1

[Event "Cracovia Chess Festival A 2021"]
[Site "Cracow"]
[Date "2022.01.03"]
[Round "8.32"]
[White "Kopylov, Daniel"]
[Black "Flak, Pawel"]
[Result "1-0"]
[ECO "B03"]
[WhiteElo "2317"]
[BlackElo "2206"]
[Annotator "ChessBase"]
[PlyCount "87"]
[EventDate "2021.12.27"]
[EventCountry "POL"]
[SourceTitle "playchess.com"]
[Source "ChessBase"]
[SourceQuality "1"]
[TimeControl "40/5400+30:1800+30"]

1. e4 {[%emt 0:00:30]} Nf6 {[%emt 0:02:50]} 2. e5 {[%emt 0:00:00]} Nd5 {[%emt 0:00:02]} 3. d4 {[%emt 0:00:10]} d6 {[%emt 0:00:01]} 4. c4 {[%emt 0:00:12]} Nb6 {[%emt 0:00:02]} 5. exd6 {[%emt 0:00:19]} cxd6 {[%emt 0:00:01]} 6. Nc3 {[%emt 0:00:13]} Nc6 {[%emt 0:00:10]} 7. Be3 {[%emt 0:02:13]} Bf5 {[%emt 0:00:13]} 8. d5 {[%emt 0:07:03]} Ne5 {[%emt 0:00:35]} 9. Be2 {[%emt 0:01:44]} Rc8 {[%emt 0:02:11]} 10. b3 {[%emt 0:01:24]} Ned7 {[%emt 0:01:50]} 11. Nf3 {[%emt 0:02:59]} Nf6 {[%emt 0:02:32]} 12. Nd4 {[%emt 0:04:29]} Bd7 {[%emt 0:02:21]} 13. g4 {[%emt 0:04:14]} h5 {[%emt 0:01:01]} 14. g5 {[%emt 0:03:39]} Ng4 {[%emt 0:00:11]} 15. g6 {[%emt 0:00:46]} e5 {[%emt 0:02:56]} 16. dxe6 {[%emt 0:05:16]} fxe6 {[%emt 0:00:13]} 17. Bxg4 {[%emt 0:00:59]} hxg4 {[%emt 0:00:02]} 18. Qxg4 {[%emt 0:00:58]} e5 {[%emt 0:14:37]} 19. Qf3 {[%emt 0:08:38]} Qe7 {[%emt 0:00:43]} 20. Ndb5 {[%emt 0:00:57]} Rh3 {[%emt 0:36:31]} 21. Qxb7 {[%emt 0:13:26]} Qh4 {[%emt 0:22:08]} 22. O-O-O {[%emt 0:08:30]} Nxc4 {[%emt 0:00:48]} 23. bxc4 {[%emt 0:02:07]} Qxc4 {[%emt 0:00:02]} 24. Kb2 {[%emt 0:00:58]} a6 {[%emt 0:02:41]} 25. Rc1 {[%emt 0:08:55]} d5 {[%emt 0:07:24]} 26. Ka1 {[%emt 0:01:20]} Qc6 {[%emt 0:00:41]} 27. Qxc6 {[%emt 0:04:49]} Rxc6 {[%emt 0:00:08]} 28. Na7 {[%emt 0:01:07]} Rxc3 {[%emt 0:00:16]} 29. Rxc3 {[%emt 0:00:22]} d4 {[%emt 0:00:01]} 30. Bxd4 {[%emt 0:00:34]} exd4 {[%emt 0:00:09]} 31. Re1+ {[%emt 0:00:40]} Kd8 {[%emt 0:01:00]} 32. Rxh3 {[%emt 0:02:46]} Bxh3 {[%emt 0:00:01]} 33. Nc6+ {[%emt 0:00:07]} Kd7 {[%emt 0:01:09]} 34. Nxd4 {[%emt 0:00:21]} Bb4 {[%emt 0:00:38]} 35. Re3 {[%emt 0:00:30]} Bg4 {[%emt 0:00:36]} 36. Kb2 {[%emt 0:01:45]} Bh5 {[%emt 0:00:59]} 37. Rg3 {[%emt 0:01:02]} Be7 {[%emt 0:00:40]} 38. Kc3 {[%emt 0:01:03]} Bf6 {[%emt 0:00:01]} 39. Kd3 {[%emt 0:00:18]} Kd6 {[%emt 0:00:30]} 40. Ke4 {[%emt 0:00:00]} Kc5 {[%emt 0:00:00]} 41. f3 {[%emt 0:00:35]} Bxd4 {[%emt 0:04:18]} 42. Rg5+ {[%emt 0:00:19]} Kc4 {[%emt 0:00:02]} 43. Rxh5 {[%emt 0:00:11]} Ba1 {[%emt 0:00:10]} 44. Ra5 {[%emt 0:00:17]} 1-0

[Event "Cracovia Chess Festival A 2021"]
[Site "Cracow"]
[Date "2022.01.03"]
[Round "8.33"]
[White "Majek, Kacper"]
[Black "Chyzy, Jakub"]
[Result "0-1"]
[ECO "C55"]
[WhiteElo "2100"]
[BlackElo "2260"]
[Annotator "ChessBase"]
[PlyCount "56"]
[EventDate "2021.12.27"]
[EventCountry "POL"]
[SourceTitle "playchess.com"]
[Source "ChessBase"]
[SourceQuality "1"]
[TimeControl "40/5400+30:1800+30"]

1. e4 {[%emt 0:02:25]} e5 {[%emt 0:00:03]} 2. Nf3 {[%emt 0:00:05]} Nc6 {[%emt 0:00:05]} 3. Bc4 {[%emt 0:00:06]} Nf6 {[%emt 0:00:04]} 4. d3 {[%emt 0:00:04]} h6 {[%emt 0:00:03]} 5. O-O {[%emt 0:00:50]} d6 {[%emt 0:00:10]} 6. c3 {[%emt 0:00:23]} g5 {[%emt 0:00:03]} 7. Re1 {[%emt 0:15:25]} Bg7 {[%emt 0:03:53]} 8. d4 {[%emt 0:02:30]} g4 {[%emt 0:12:11]} 9. dxe5 {[%emt 0:18:47]} gxf3 {[%emt 0:00:07]} 10. exf6 {[%emt 0:00:13]} Bxf6 {[%emt 0:00:25]} 11. Qxf3 {[%emt 0:09:10]} Ne5 {[%emt 0:00:09]} 12. Qe2 {[%emt 0:00:04]} Rg8 {[%emt 0:00:26]} 13. Nd2 {[%emt 0:04:20]} Bg5 {[%emt 0:20:20]} 14. Kh1 {[%emt 0:05:20]} Qf6 {[%emt 0:11:09]} 15. f3 {[%emt 0:04:57]} Bh4 {[%emt 0:04:34]} 16. g3 {[%emt 0:16:26]} Rxg3 {[%emt 0:07:19]} 17. hxg3 {[%emt 0:00:05]} Bxg3 {[%emt 0:00:16]} 18. Kg2 {[%emt 0:00:55]} Ng6 {[%emt 0:03:49]} 19. Nf1 {[%emt 0:06:18]} Bxe1 {[%emt 0:00:40]} 20. Kg1 {[%emt 0:06:15]} Nh4 {[%emt 0:03:44]} 21. Nh2 {[%emt 0:00:35]} Bg3 {[%emt 0:15:43]} 22. Be3 {[%emt 0:00:03]} Bh3 {[%emt 0:01:10]} 23. Bd4 {[%emt 0:01:25]} Qf4 {[%emt 0:01:23]} 24. Rf1 {[%emt 0:02:56]} Bxh2+ {[%emt 0:01:27]} 25. Qxh2 {[%emt 0:00:06]} Qxh2+ {[%emt 0:00:18]} 26. Kxh2 {[%emt 0:00:05]} Bxf1 {[%emt 0:00:07]} 27. Bxf1 {[%emt 0:00:13]} Nxf3+ {[%emt 0:00:01]} 28. Kg3 {[%emt 0:00:14]} Nxd4 {[%emt 0:00:04]} 0-1

[Event "Cracovia Chess Festival A 2021"]
[Site "Cracow"]
[Date "2022.01.03"]
[Round "8.34"]
[White "Svendsen, Bertil"]
[Black "Sernecki, Franciszek"]
[Result "1-0"]
[ECO "E04"]
[WhiteElo "2251"]
[BlackElo "2220"]
[Annotator "ChessBase"]
[PlyCount "49"]
[EventDate "2021.12.27"]
[EventCountry "POL"]
[SourceTitle "playchess.com"]
[Source "ChessBase"]
[SourceQuality "1"]
[TimeControl "40/5400+30:1800+30"]

1. d4 {[%emt 0:00:04]} Nf6 {[%emt 0:00:05]} 2. Nf3 {[%emt 0:00:06]} e6 {[%emt 0:00:04]} 3. g3 {[%emt 0:00:08]} d5 {[%emt 0:00:07]} 4. c4 {[%emt 0:00:09]} dxc4 {[%emt 0:00:36]} 5. Bg2 {[%emt 0:00:09]} c5 {[%emt 0:00:19]} 6. Qa4+ {[%emt 0:00:58]} Nc6 {[%emt 0:17:25]} 7. O-O {[%emt 0:03:53]} Bd7 {[%emt 0:00:59]} 8. Qxc4 {[%emt 0:00:20]} cxd4 {[%emt 0:00:20]} 9. Nxd4 {[%emt 0:00:20]} Rc8 {[%emt 0:00:09]} 10. Nc3 {[%emt 0:00:35]} Nxd4 {[%emt 0:00:22]} 11. Qxd4 {[%emt 0:00:13]} Bc5 {[%emt 0:00:03]} 12. Qh4 {[%emt 0:08:35]} h6 {[%emt 0:00:34]} 13. Bxb7 {[%emt 0:06:55]} Rb8 {[%emt 0:00:12]} 14. Bg2 {[%emt 0:00:25]} Rb4 {[%emt 0:15:25]} 15. e4 {[%emt 0:00:17]} Bc6 {[%emt 0:17:52]} 16. a3 {[%emt 0:08:08]} Rc4 {[%emt 0:03:11]} 17. Qf4 {[%emt 0:08:41]} O-O {[%emt 0:04:47]} 18. Qf3 {[%emt 0:04:04]} Nxe4 {[%emt 0:07:29]} 19. Qe2 {[%emt 0:01:45]} Nxf2 {[%emt 0:19:07]} 20. Qxc4 {[%emt 0:01:57]} Qb6 {[%emt 0:02:14]} 21. b4 {[%emt 0:15:42]} Nh3+ {[%emt 0:03:08]} 22. Kh1 {[%emt 0:00:08]} Bxb4 {[%emt 0:00:10]} 23. Bxc6 {[%emt 0:02:56]} Rc8 {[%emt 0:00:46]} 24. axb4 {[%emt 0:08:28]} Rxc6 {[%emt 0:00:04]} 25. Qb5 {[%emt 0:00:26]} 1-0

[Event "Cracovia Chess Festival A 2021"]
[Site "Cracow"]
[Date "2022.01.03"]
[Round "8.35"]
[White "Braeuning, Rudolf Wilhelm"]
[Black "Romero Calduch, Sergio"]
[Result "1-0"]
[ECO "B13"]
[WhiteElo "2242"]
[BlackElo "2199"]
[Annotator "ChessBase"]
[PlyCount "31"]
[EventDate "2021.12.27"]
[EventCountry "POL"]
[SourceTitle "playchess.com"]
[Source "ChessBase"]
[SourceQuality "1"]
[TimeControl "40/5400+30:1800+30"]

1. e4 {[%emt 0:01:04]} c6 {[%emt 0:02:12]} 2. d4 {[%emt 0:01:35]} d5 {[%emt 0:00:08]} 3. exd5 {[%emt 0:00:09]} cxd5 {[%emt 0:00:06]} 4. c4 {[%emt 0:00:03]} Nf6 {[%emt 0:00:15]} 5. Nc3 {[%emt 0:00:02]} Nc6 {[%emt 0:00:08]} 6. Bg5 {[%emt 0:00:11]} Be6 {[%emt 0:00:40]} 7. Nge2 {[%emt 0:01:58]} h6 {[%emt 0:27:45]} 8. Bxf6 {[%emt 0:01:25]} exf6 {[%emt 0:00:05]} 9. Nf4 {[%emt 0:16:20]} Bb4 {[%emt 0:04:28]} 10. Be2 {[%emt 0:07:15]} Qd6 {[%emt 0:12:28]} 11. Qd2 {[%emt 0:11:51]} dxc4 {[%emt 0:19:47]} 12. d5 {[%emt 0:00:56]} O-O-O {[%emt 0:00:31]} 13. Rd1 {[%emt 0:05:58]} Bf5 {[%emt 0:22:27]} 14. dxc6 {[%emt 0:06:38]} Qxc6 {[%emt 0:00:03]} 15. Nfd5 {[%emt 0:02:56]} Bxc3 {[%emt 0:05:53]} 16. bxc3 {[%emt 0:01:14]} 1-0

[Event "Cracovia Chess Festival A 2021"]
[Site "Cracow"]
[Date "2022.01.03"]
[Round "8.36"]
[White "Gombocz, Ferenc Jr."]
[Black "Musial, Tomasz"]
[Result "0-1"]
[ECO "A25"]
[WhiteElo "2236"]
[BlackElo "2111"]
[Annotator "ChessBase"]
[PlyCount "136"]
[EventDate "2021.12.27"]
[EventCountry "POL"]
[SourceTitle "playchess.com"]
[Source "ChessBase"]
[SourceQuality "1"]
[TimeControl "40/5400+30:1800+30"]

1. c4 {[%emt 0:00:04]} e5 {[%emt 0:00:15]} 2. Nc3 {[%emt 0:00:09]} Nc6 {[%emt 0:01:11]} 3. g3 {[%emt 0:00:38]} g6 {[%emt 0:00:29]} 4. Bg2 {[%emt 0:00:24]} Bg7 {[%emt 0:00:29]} 5. e4 {[%emt 0:00:31]} d6 {[%emt 0:00:31]} 6. Nge2 {[%emt 0:01:17]} f5 {[%emt 0:00:09]} 7. d3 {[%emt 0:00:32]} Nf6 {[%emt 0:00:43]} 8. O-O {[%emt 0:00:25]} O-O {[%emt 0:00:26]} 9. Nd5 {[%emt 0:08:13]} Be6 {[%emt 0:00:47]} 10. Bg5 {[%emt 0:00:58]} Qd7 {[%emt 0:00:44]} 11. Qd2 {[%emt 0:03:16]} Rf7 {[%emt 0:01:01]} 12. exf5 {[%emt 0:15:53]} Bxf5 {[%emt 0:01:20]} 13. Nxf6+ {[%emt 0:03:16]} Bxf6 {[%emt 0:00:08]} 14. Bxf6 {[%emt 0:00:04]} Rxf6 {[%emt 0:00:06]} 15. f4 {[%emt 0:00:27]} Raf8 {[%emt 0:06:20]} 16. d4 {[%emt 0:05:13]} exd4 {[%emt 0:08:37]} 17. Nxd4 {[%emt 0:00:51]} Nxd4 {[%emt 0:04:08]} 18. Qxd4 {[%emt 0:00:07]} b6 {[%emt 0:00:01]} 19. Rfe1 {[%emt 0:02:31]} c6 {[%emt 0:16:34]} 20. b4 {[%emt 0:27:26]} Qc7 {[%emt 0:22:55]} 21. b5 {[%emt 0:12:42]} cxb5 {[%emt 0:00:24]} 22. Bd5+ {[%emt 0:00:06]} Kh8 {[%emt 0:00:21]} 23. cxb5 {[%emt 0:01:10]} Qc5 {[%emt 0:01:03]} 24. Qxc5 {[%emt 0:00:49]} dxc5 {[%emt 0:00:14]} 25. Re7 {[%emt 0:00:44]} Rd6 {[%emt 0:03:25]} 26. Bc4 {[%emt 0:07:54]} Rd7 {[%emt 0:04:17]} 27. Rxd7 {[%emt 0:00:53]} Bxd7 {[%emt 0:00:06]} 28. Rd1 {[%emt 0:01:09]} Bg4 {[%emt 0:02:54]} 29. Rd2 {[%emt 0:03:58]} Re8 {[%emt 0:00:30]} 30. Kf2 {[%emt 0:00:05]} Kg7 {[%emt 0:02:32]} 31. Bf1 {[%emt 0:03:08]} Re7 {[%emt 0:03:19]} 32. Bg2 {[%emt 0:00:11]} Rd7 {[%emt 0:04:20]} 33. Rxd7+ {[%emt 0:00:23]} Bxd7 {[%emt 0:00:05]} 34. Bf1 {[%emt 0:00:05]} Kf6 {[%emt 0:01:23]} 35. Ke3 {[%emt 0:00:19]} Ke7 {[%emt 0:01:10]} 36. Kd2 {[%emt 0:01:55]} Kd6 {[%emt 0:03:26]} 37. Kc3 {[%emt 0:00:04]} Bg4 {[%emt 0:00:05]} 38. a3 {[%emt 0:00:17]} Bf3 {[%emt 0:01:02]} 39. Bc4 {[%emt 0:00:16]} Bd5 {[%emt 0:00:05]} 40. Bf1 {[%emt 0:00:00]} Ke6 {[%emt 0:00:00]} 41. Bh3+ {[%emt 0:07:40]} Kf6 {[%emt 0:01:04]} 42. Bf1 {[%emt 0:00:05]} Bf3 {[%emt 0:01:47]} 43. Bd3 {[%emt 0:18:06]} Ke6 {[%emt 0:02:47]} 44. Kc4 {[%emt 0:02:07]} Bd5+ {[%emt 0:00:05]} 45. Kc3 {[%emt 0:00:04]} Bb7 {[%emt 0:00:04]} 46. Bf1 {[%emt 0:00:08]} Bf3 {[%emt 0:00:57]} 47. Bd3 {[%emt 0:02:53]} Kd5 {[%emt 0:01:42]} 48. h4 {[%emt 0:02:00]} Bg4 {[%emt 0:00:44]} 49. a4 {[%emt 0:01:07]} Bd1 {[%emt 0:01:12]} 50. Bc4+ {[%emt 0:01:16]} Ke4 {[%emt 0:01:14]} 51. Bg8 {[%emt 0:00:06]} h5 {[%emt 0:01:24]} 52. Bf7 {[%emt 0:00:55]} Kf5 {[%emt 0:01:05]} 53. a5 {[%emt 0:00:58]} bxa5 {[%emt 0:00:22]} 54. Be8 {[%emt 0:01:03]} a4 {[%emt 0:01:15]} 55. Bd7+ {[%emt 0:00:11]} Kf6 {[%emt 0:01:09]} 56. Kb2 {[%emt 0:00:08]} c4 {[%emt 0:03:08]} 57. Bc6 {[%emt 0:00:22]} Kf5 {[%emt 0:01:20]} 58. Bd7+ {[%emt 0:00:23]} Ke4 {[%emt 0:00:39]} 59. Be8 {[%emt 0:00:28]} a3+ {[%emt 0:05:56]} 60. Kxa3 {[%emt 0:00:21]} c3 {[%emt 0:00:48]} 61. Bxg6+ {[%emt 0:00:08]} Ke3 {[%emt 0:00:07]} 62. Kb4 {[%emt 0:01:57]} c2 {[%emt 0:00:08]} 63. Bxc2 {[%emt 0:00:02]} Bxc2 {[%emt 0:00:06]} 64. Kc5 {[%emt 0:00:33]} Kf3 {[%emt 0:00:12]} 65. b6 {[%emt 0:00:22]} axb6+ {[%emt 0:00:07]} 66. Kxb6 {[%emt 0:00:03]} Kxg3 {[%emt 0:00:07]} 67. Kc5 {[%emt 0:00:04]} Kxh4 {[%emt 0:00:14]} 68. Kd4 {[%emt 0:00:03]} Kg3 {[%emt 0:00:07]} 0-1